[Event "Mitropa Cup Women 2022"]
[Site "Corte"]
[Date "2022.05.01"]
[Round "2.6"]
[White "Sedina, Elena"]
[Black "Nadzamova, Viktoria"]
[Result "0-1"]
[ECO "B90"]
[WhiteElo "2258"]
[BlackElo "2117"]
[Annotator "TA"]
[PlyCount "78"]
[EventDate "2022.04.30"]
[EventType "team-tourn"]
[EventCountry "FRA"]
[SourceTitle "playchess.com"]
[Source "ChessBase"]
[SourceQuality "1"]
[WhiteTeam "Italy"]
[BlackTeam "Slovakia"]
[WhiteTeamCountry "ITA"]
[BlackTeamCountry "SVK"]
[TimeControl "40/5400+30:1800+30"]

{[%evp 15,78,57,64,38,83,56,85,81,77,0,0,0,-12,-18,-29,-20,-35,-37,-27,-35,-41,-65,-66,-80,-62,-18,0,-45,-38,-43,0,0,0,0,0,0,0,18,94,0,0,0,0,-10,-11,-80,-56,-242,521,469,513,491,768,765,602,372,803,561,557,527,533,512,950,0,0]} 1. e4 {[%emt 0:00:03]} c5 {[%emt 0:00:05]} 2. Nf3 {[%emt 0:00:11]} d6 {[%emt 0:00:14]} 3. d4 {[%emt 0:04:00]} cxd4 {[%emt 0:00:07]} 4. Nxd4 {[%emt 0:00:26]} Nf6 {[%emt 0:00:34]} 5. Nc3 {[%emt 0:00:07]} a6 {[%emt 0:00:08]} 6. Be3 {[%emt 0:02:53]} g6 {[%emt 0:06:57]} 7. f3 {[%emt 0:03:47]} Bg7 {[%emt 0:00:30]} 8. Qd2 {[%emt 0:00:08]} b5 {[%emt 0:01:01]} 9. a3 {[%emt 0:24:00] B75: Sicilian Dragon: Yugoslav Attack, Miscellaneous.} O-O {[%emt 0:01:01]} 10. g4 {[%emt 0:10:38]} Bb7 {[%emt 0:04:42]} 11. h4 {White is better.} h5 {[%emt 0:03:37]} 12. g5 {[%emt 0:17:21]} (12. O-O-O $16) 12... Nfd7 $11 {[%emt 0:01:17]} 13. O-O-O {[%emt 0:03:14]} Nc6 {[%emt 0:07:11]} 14. Nxc6 {[%emt 0:10:13]} Bxc6 {[%emt 0:00:02]} 15. Bd4 {[%emt 0:00:07]} Bxd4 {[%emt 0:11:45]} 16. Qxd4 {[%emt 0:00:02]} Rb8 {[%emt 0:04:24]} 17. f4 {[%emt 0:04:33]} a5 {[%emt 0:02:22] [#]} 18. Nd5 $146 {[%emt 0:01:23] Prevents b4.} ({Predecessor:} 18. b4 axb4 19. axb4 Qc7 20. Kb2 Nb6 21. Rb1 Rfc8 22. Rh3 Bd7 23. f5 Na4+ 24. Kb3 gxf5 {0-1 (36) Espinosa Veloz,E (2486)-Hernandez Gonzalez,W (2480) Villa Clara 2020}) 18... b4 $1 {[%emt 0:03:04]} 19. Rh3 {[%emt 0:05:29]} Bxd5 {[%emt 0:21:14]} 20. Qxd5 {[%emt 0:04:31]} Qb6 {[%emt 0:02:31] [#] Threatens to win with ...bxa3.} 21. Qd4 {[%emt 0:00:54]} Qc7 {[%emt 0:04:31] White must now prevent ...Rfc8.} 22. a4 {[%emt 0:05:49]} Rfc8 {[%emt 0:02:14][%csl Gc8][%cal Rc7c2]} (22... b3 $5 23. Rc3 Nc5 $15) 23. Rd2 {[%emt 0:00:02]} b3 {[%emt 0:00:50] aiming for ...Rb4.} 24. Rc3 {[%emt 0:00:08]} Nc5 {[%emt 0:00:07] ...Rb4 is the strong threat.} 25. Bb5 $1 {[%emt 0:02:15]} bxc2 {[%emt 0:05:37]} 26. f5 {[%emt 0:00:12]} Kh7 {[%emt 0:06:14]} (26... Qb7 $11 {keeps the balance.}) 27. fxg6+ {[%emt 0:00:54]} ({White should play} 27. Qd5 $16 Rf8 28. e5) 27... fxg6 {[%emt 0:00:01]} 28. Rf2 {[%emt 0:00:34] Intending Rf7+ and mate.} Rf8 {[%emt 0:00:42] Inhibits Rf7+.} (28... e5 $2 29. Qd5 Rf8 30. Rcf3 Rxf3 31. Rxf3 $18) 29. Kxc2 {[%emt 0:00:26][%cal Oe4e5]} e5 {[%emt 0:01:19]} 30. Qe3 {[%emt 0:00:04]} (30. Qd2 $1 $11 {remains equal.}) 30... Qb7 $17 {[%emt 0:00:38] Hoping for ...Rxf2+.} 31. Rf6 {[#]} (31. Rxf8 $2 Rxf8 32. Qe1 Rf4 $19) (31. Rc4 $1 $15) 31... Nxe4 $4 {[%emt 0:01:33][%mdl 8192]} (31... Rxf6 $1 $19 {and all is fine.} 32. gxf6 Rf8) 32. Rxf8 $18 {[%emt 0:01:26]} Rxf8 {[%emt 0:03:52]} 33. Bc6 {[%emt 0:00:03]} Qb4 {[%emt 0:00:06]} (33... Qf7 $142 34. Qxe4 (34. Bxe4 d5 $14) 34... Qf2+ 35. Kb1 (35. Kb3 Rf4 $18) 35... Rf4) 34. Bxe4 {[%emt 0:00:57]} Qxa4+ {[%emt 0:00:55]} 35. Kd2 {[%emt 0:00:13]} (35. b3 Qa2+ 36. Kd3 Kh8 $18) 35... d5 $2 {[%emt 0:00:58]} (35... Kh8 36. Rb3 (36. Bxg6 Qxh4 37. Bd3 Rf7 $18) 36... Qc4) 36. Qa7+ {[%emt 0:00:48]} Kh8 {[%emt 0:00:07]} 37. Bxg6 {[%emt 0:00:33][%csl Gg6][%cal Ra7h7]} Qf4+ {[%emt 0:01:14]} 38. Kc2 {[%emt 0:00:20][%csl Gg6][%cal Ra7h7]} Qa4+ {[%emt 0:00:20]} (38... Qf2+ $142 39. Qxf2 Rxf2+ 40. Kb3 Rh2) 39. Kd2 $2 {[%emt 0:00:13]} (39. Kb1 $18 {[%csl Gg6][%cal Ra7h7]} Rf1+ 40. Rc1 Rxc1+ 41. Kxc1 Qc6+ 42. Bc2) 39... Qf4+ {[%emt 0:00:05][%mdl 32768] Weighted Error Value: White=0.54/Black=0.33. Loss on time!?} 0-1

[Event "Mitropa Cup Women 2022"]
[Site "Corte"]
[Date "2022.05.01"]
[Round "2.7"]
[White "Sankova, Stella"]
[Black "Gueci, Tea"]
[Result "1/2-1/2"]
[ECO "C55"]
[WhiteElo "2066"]
[BlackElo "2243"]
[Annotator "TA"]
[PlyCount "59"]
[EventDate "2022.04.30"]
[EventType "team-tourn"]
[EventCountry "FRA"]
[SourceTitle "playchess.com"]
[Source "ChessBase"]
[SourceQuality "1"]
[WhiteTeam "Slovakia"]
[BlackTeam "Italy"]
[WhiteTeamCountry "SVK"]
[BlackTeamCountry "ITA"]
[TimeControl "40/5400+30:1800+30"]

{[%evp 12,59,12,6,7,8,8,0,0,-3,0,0,0,-46,-52,-72,-65,-102,-90,-104,-82,-122,-31,-65,0,0,7,0,0,0,0,0,20,0,6,0,25,22,21,0,0,0,0,0,0,0,0,0,0,0]} 1. e4 {[%emt 0:00:05]} e5 {[%emt 0:00:04]} 2. Nf3 {[%emt 0:00:04]} Nc6 {[%emt 0:00:03]} 3. Bc4 {[%emt 0:00:04]} Nf6 {[%emt 0:00:05]} 4. d3 {[%emt 0:00:06]} h6 {[%emt 0:00:04]} 5. Nc3 {[%emt 0:09:33]} Bc5 {[%emt 0:00:38]} 6. h3 {[%emt 0:01:30]} d6 {[%emt 0:05:30]} 7. Na4 $1 {[%emt 0:03:27][%mdl 4] now scores much better than the old 7.0-0.} Bb6 {[%emt 0:00:52] C50: Hungarian Defence and Giuoco Pianissimo.} 8. Nxb6 {[%emt 0:00:48]} axb6 {[%emt 0:00:04]} 9. Bd2 {[%emt 0:05:45]} O-O {[%emt 0:01:50]} 10. O-O {[%emt 0:02:10]} Ne7 {[%emt 0:08:47]} 11. Re1 {[%emt 0:04:55] [#]} Ng6 $146 {[%emt 0:06:53]} ({Predecessor:} 11... Re8 12. Bc3 c6 13. a4 d5 14. exd5 cxd5 15. Bb3 d4 16. Nxe5 Be6 17. Bxe6 fxe6 {1-0 (23) Claus,J-Ziegert,A DESC email 2013}) 12. d4 {[%emt 0:07:18]} (12. a4 $11) 12... exd4 $1 $15 {[%emt 0:11:11]} 13. Nxd4 {[%emt 0:00:08] [#]} Nxe4 $1 {[%emt 0:00:32]} 14. Bxf7+ {[%emt 0:03:11]} (14. Rxe4 d5) 14... Rxf7 {[%emt 0:00:47]} 15. Rxe4 {[%emt 0:00:06]} d5 {[%emt 0:03:51]} 16. Re1 {[%emt 0:00:14] [#]} c5 {[%emt 0:03:01]} (16... Bxh3 $1 $17 {[%mdl 512]} 17. gxh3 Qh4 18. Bxh6 gxh6) 17. Qh5 {[%emt 0:04:16]} Qd6 {[%emt 0:19:01]} (17... Rf6 $1 $15 18. Nb5 Bf5) 18. Re8+ $11 {[%emt 0:06:11]} Rf8 {[%emt 0:01:37]} 19. Rxf8+ {[%emt 0:01:05]} Nxf8 {[%emt 0:00:12]} 20. Nf5 {[%emt 0:10:54]} Bxf5 {[%emt 0:12:18]} 21. Qxf5 {[%emt 0:00:01]} Re8 {[%emt 0:00:48]} 22. Re1 {[%emt 0:02:56]} Rxe1+ {[%emt 0:08:44]} 23. Bxe1 {[%emt 0:00:01]} Nd7 {[%emt 0:00:30]} 24. Bd2 {[%emt 0:01:58]} Qc6 {[%emt 0:01:22] The position is equal.} 25. Bf4 {[%emt 0:02:15]} d4 {[%emt 0:03:15]} 26. Qg4 {[%emt 0:04:20]} Nf6 {[%emt 0:03:41]} 27. Qf5 {[%emt 0:01:07]} Nd7 {[%emt 0:04:09]} 28. Qg4 {[%emt 0:01:17]} Nf6 {[%emt 0:01:08]} 29. Qf5 {[%emt 0:00:07]} Nd7 {[%emt 0:03:16]} 30. Qg4 {[%emt 0:00:45] Weighted Error Value: White=0.10 (very precise) /Black=0.12 (very precise)} 1/2-1/2

[Event "Mitropa Cup Women 2022"]
[Site "Corte"]
[Date "2022.05.01"]
[Round "2.8"]
[White "Gabbani, Sara"]
[Black "Sevcikova, Lucia"]
[Result "0-1"]
[ECO "C10"]
[WhiteElo "1831"]
[BlackElo "2030"]
[Annotator "TA"]
[PlyCount "96"]
[EventDate "2022.04.30"]
[EventType "team-tourn"]
[EventCountry "FRA"]
[SourceTitle "playchess.com"]
[Source "ChessBase"]
[SourceQuality "1"]
[WhiteTeam "Italy"]
[BlackTeam "Slovakia"]
[WhiteTeamCountry "ITA"]
[BlackTeamCountry "SVK"]
[TimeControl "40/5400+30:1800+30"]

{[%evp 14,96,14,20,35,34,51,21,70,61,81,21,64,57,125,115,111,110,122,41,52,19,26,31,111,42,46,0,34,22,27,-6,0,0,0,0,0,-10,0,0,0,-167,-5,-100,-75,-80,-78,-66,-26,-22,0,0,-7,-55,-7,-102,-77,-135,-135,-123,-129,-210,-186,-282,-281,-306,-272,-277,-257,-337,-341,-491,-487,-442,-378,-512,-500,-1035,-1003,-1090,-1017,-1109,-1064,-761,-702]} 1. e4 {[%emt 0:00:03]} e6 {[%emt 0:00:07]} 2. d4 {[%emt 0:00:06]} d5 {[%emt 0:00:04]} 3. Nc3 {[%emt 0:00:05]} dxe4 {[%emt 0:00:05]} 4. Nxe4 {[%emt 0:00:07]} Nd7 {[%emt 0:00:03]} 5. c3 {[%emt 0:01:01]} Ngf6 {[%emt 0:00:22]} 6. Nxf6+ {[%emt 0:00:33]} Nxf6 {[%emt 0:00:06]} 7. Bd3 {[%emt 0:00:26]} c5 {[%emt 0:03:48]} 8. Nf3 {[%emt 0:03:35]} Be7 {[%emt 0:03:41] C10: French with 3 Nc3: Unusual Black 3rd moves and 3...dxe4.} 9. dxc5 {[%emt 0:03:38]} Bxc5 {[%emt 0:00:42]} 10. O-O {[%emt 0:00:41]} h6 {[%emt 0:04:54]} (10... O-O $11) 11. Bf4 {[%emt 0:04:30]} O-O {[%emt 0:02:09]} 12. Qe2 {[%emt 0:05:47] [#]} (12. Qd2 $16) 12... Bd7 $146 {[%emt 0:06:56]} ({Predecessor:} 12... Nd5 13. Be5 Bd6 14. Rad1 Bxe5 15. Nxe5 Qc7 16. Bb1 Nf6 17. Ng4 Nxg4 18. Qxg4 f5 {1-0 (29) De Souza,E (1673)-Nunes,A (1797) Cuiaba 2021}) 13. Rfd1 {[%emt 0:04:57]} Qe7 {[%emt 0:04:29]} ({Black should play} 13... a5 $14) 14. b4 $1 $16 {[%emt 0:11:28]} Nd5 {[%emt 0:10:21][%csl LRc3,LRf4]} 15. Be5 {[%emt 0:02:11]} ({Much weaker is} 15. Qe4 $6 f5 $1 16. Qe5 Nxf4 17. Qxf4 Bd6 $11) 15... Bd6 {[%emt 0:07:25] [#]} 16. Qe4 {[%emt 0:11:06]} (16. Bxd6 $1 $16 Qxd6 17. c4) 16... f5 $14 {[%emt 0:02:48]} 17. Qd4 {[%emt 0:06:55]} Bxe5 {[%emt 0:07:06]} 18. Nxe5 {[%emt 0:00:27]} Be8 {[%emt 0:01:34] Prevents Ng6.} (18... Rfd8 $1 $14) 19. Rac1 {[%emt 0:10:00]} (19. Bc4 $16) 19... Bh5 $1 {[%emt 0:04:09]} 20. f3 {[%emt 0:04:23]} (20. Re1 $14 {is superior.}) 20... Rfd8 {[%emt 0:02:57] Hoping for ...Qg5.} 21. Qf2 {[%emt 0:04:44]} Qg5 {[%emt 0:12:18]} 22. Qg3 {[%emt 0:10:35]} Ne3 {[%emt 0:06:28]} 23. Qxg5 {[%emt 0:03:16]} hxg5 {[%emt 0:00:05]} 24. Re1 {[%emt 0:01:17]} f4 {[%emt 0:00:44] aiming for ...Rd5.} 25. Bf1 {[%emt 0:02:21]} Rac8 {[%emt 0:02:59]} 26. c4 $1 {[%emt 0:01:40] Against Rd5} Rd2 {[%emt 0:05:15]} 27. Re2 $2 {[%emt 0:00:34] [#]} (27. a3 $11) 27... Rcd8 $2 {[%emt 0:00:52]} (27... Rd5 $1 $19 {[%cal Rd5e5][%mdl 512]} 28. Ng4 Bxg4 29. fxg4 Rd4) 28. Kf2 {[%emt 0:01:41]} (28. Rxd2 $11 Rxd2 29. c5) 28... Rd1 {[%emt 0:01:53] 0x0.001b95e37814dp-1022s more active pieces.} 29. Rxd1 {[%emt 0:01:15]} Rxd1 {[%emt 0:00:07][%csl Ge3][%cal Rd1f1]} 30. Re1 {[%emt 0:00:21]} Rxe1 {[%emt 0:02:15]} 31. Kxe1 $15 {[%emt 0:00:06][%mdl 4096] Endgame KBN-KBN} Nc2+ {[%emt 0:00:06]} 32. Kd2 $1 {[%emt 0:00:08]} Nxb4 {[%emt 0:00:05]} 33. a3 {[%emt 0:00:11]} (33. Kc3 $1 $11 Na6 34. Kd4) 33... Nc6 {[%emt 0:01:21]} (33... Na6 $1 $15 {is more appropriate.}) 34. Nd3 {[%emt 0:02:29]} (34. Nxc6 $11 bxc6 35. Kd3) 34... e5 {[%emt 0:02:30]} 35. Kc3 {[%emt 0:00:40]} ({White should try} 35. Nf2) 35... g4 $17 {[%emt 0:01:02]} 36. fxg4 {[%emt 0:04:12]} Bxg4 {[%emt 0:00:07]} 37. Kd2 {[%emt 0:00:42]} (37. Nf2 $17 Bd7 38. g3) 37... Kf7 {[%emt 0:00:57]} 38. Nc5 {[%emt 0:00:20]} (38. g3 $142) 38... b6 $19 {[%emt 0:01:36]} 39. Ne4 {[%emt 0:00:09]} Nd4 {[%emt 0:02:48]} 40. Bd3 {[%emt 0:01:09]} Nb3+ {[%emt 0:01:04]} 41. Kc3 {[%emt 0:02:30]} Nc5 {[%emt 0:02:25]} 42. Ng5+ {[%emt 0:00:29]} (42. Nf2 {was called for.} Bc8 43. g3) 42... Kf6 {[%emt 0:00:33]} 43. Nh7+ {[%emt 0:00:35]} Ke7 {[%emt 0:00:38]} 44. Bc2 {[%emt 0:02:28]} e4 {[%emt 0:01:29][%cal Be5e4,Be4e3][%mdl 32] Strongly threatening ...f3. Black is clearly winning.} 45. Kd2 {[%emt 0:01:01]} (45. Ng5 $142 f3 46. gxf3 exf3 47. Be4) 45... Bf5 {[%emt 0:01:19]} 46. Ng5 {[%emt 0:00:15]} Kf6 {[%emt 0:01:01] And now ...e3+ would win.} 47. h4 {[%emt 0:00:37]} e3+ {[%emt 0:01:43]} 48. Kc1 {[%emt 0:00:24]} Nd3+ {[%emt 0:01:18] Weighted Error Value: White=0.50/Black=0.20 (precise)} 0-1

[Event "Mitropa Cup Women 2022"]
[Site "Corte"]
[Date "2022.05.02"]
[Round "3.2"]
[White "Terbe, Zsuzsanna"]
[Black "Urh, Zala"]
[Result "0-1"]
[ECO "D92"]
[WhiteElo "2194"]
[BlackElo "2284"]
[Annotator "TA"]
[PlyCount "46"]
[EventDate "2022.04.30"]
[EventType "team-tourn"]
[EventCountry "FRA"]
[SourceTitle "playchess.com"]
[Source "ChessBase"]
[SourceQuality "1"]
[WhiteTeamCountry "HUN"]
[BlackTeamCountry "SLO"]
[TimeControl "40/5400+30:1800+30"]

{[%evp 17,46,97,91,91,84,102,69,78,86,11,28,28,44,-112,-113,-150,-128,-200,-211,-335,-277,-522,-512,-593,-591,-921,-681,-1120,-1102,-1495,-1129]} 1. d4 {[%emt 0:00:01][%cal Bd2d4,Bd4c5][%mdl 32]} Nf6 {[%emt 0:00:33]} 2. c4 {[%emt 0:00:08]} g6 {[%emt 0:00:05]} 3. Nc3 {[%emt 0:00:05]} d5 {[%emt 0:00:10]} 4. Bf4 {[%emt 0:00:16]} Bg7 {[%emt 0:01:14]} 5. Nf3 {[%emt 0:00:07]} c5 {[%emt 0:01:30]} 6. dxc5 {[%emt 0:00:21]} Qa5 {[%emt 0:00:34]} 7. cxd5 {[%emt 0:00:14]} Nxd5 {[%emt 0:10:40]} 8. Qxd5 {[%emt 0:00:23]} Bxc3+ {[%emt 0:00:08]} 9. Bd2 {[%emt 0:00:04]} Bxd2+ {[%emt 0:01:00]} 10. Qxd2 {[%emt 0:09:32] D92: Grünfeld: 4 Nf3 Bg7 5 Bf4.} Qxc5 {[%emt 0:16:07] 10...Qxc5 scores better than 10...Qxd2+.} 11. Rc1 {[%emt 0:01:17]} Qf5 {[%emt 0:00:09]} 12. Nd4 {[%emt 0:06:31] White is slightly better.} Qd7 {[%emt 0:01:24] [#]} 13. Qc3 {[%emt 0:16:54]} ({White should play} 13. Qh6 $1 $16) 13... O-O $11 {[%emt 0:01:23][%cal Bh8f8,Bf8d8,Bd8d7][%mdl 32] [#]} 14. h4 $146 {[%emt 0:00:14]} ({Predecessor:} 14. e3 Qd8 15. Be2 Bd7 16. Bf3 Nc6 17. Nxc6 Bxc6 18. Bxc6 bxc6 19. O-O Qb6 20. b3 {½-½ (33) Brinck Claussen,B (2375)-Carlhammar,M (2245) Lyngby 1988}) 14... h5 {[%emt 0:07:05]} 15. g4 $2 {[%emt 0:13:09]} (15. e3 $14) 15... Qxg4 $17 {[%emt 0:13:35]} 16. e3 {[%emt 0:07:28] [#]} e5 $1 {[%emt 0:06:54]} 17. Nb5 {[%emt 0:01:12]} (17. Ne2 $17) 17... Nc6 $19 {[%emt 0:00:43]} 18. a3 {[%emt 0:10:19]} (18. Qc4 {was necessary.}) 18... Rd8 {[%emt 0:11:48]} 19. Rh3 {[%emt 0:07:53] Against Qf3} (19. Qc2) 19... Bf5 {[%emt 0:04:28] Black is clearly winning.} 20. Rg3 {[%emt 0:06:54]} Qxh4 {[%emt 0:00:54] White must now prevent ...Rac8.} 21. Bc4 {[%emt 0:01:09]} Rd7 {[%emt 0:03:00]} 22. a4 {[%emt 0:04:10]} Rad8 {[%emt 0:01:19] Threatens to win with ...Qh1+.} 23. Bf1 {[%emt 0:06:28]} Bg4 {[%emt 0:03:02] Black took control after the opening.  Weighted Error Value: White=1.48/Black=0.17 (very precise)} 0-1

[Event "Mitropa Cup Women 2022"]
[Site "Corte"]
[Date "2022.05.02"]
[Round "3.3"]
[White "Janzelj, Lara"]
[Black "Mihok-Juhasz, Barbara"]
[Result "0-1"]
[ECO "E92"]
[WhiteElo "2191"]
[BlackElo "2207"]
[Annotator "TA"]
[PlyCount "64"]
[EventDate "2022.04.30"]
[EventType "team-tourn"]
[EventCountry "FRA"]
[SourceTitle "playchess.com"]
[Source "ChessBase"]
[SourceQuality "1"]
[WhiteTeamCountry "SLO"]
[BlackTeamCountry "HUN"]
[TimeControl "40/5400+30:1800+30"]

{[%evp 15,63,21,21,33,51,0,68,-8,26,-45,-31,-32,-30,-31,-36,-127,-113,-194,-209,-208,-205,-253,-249,-235,-238,-280,-282,-513,-506,-480,-465,-465,-462,-552,-566,-29980,-29981,-29987,-29988,-29988,-29989,-29989,-29990,-29994,-29995,-29996,-29997,-29998,-29999,-29999]} 1. d4 {[%emt 0:00:03]} Nf6 {[%emt 0:00:09]} 2. c4 {[%emt 0:00:07]} g6 {[%emt 0:00:06]} 3. Nc3 {[%emt 0:00:05]} Bg7 {[%emt 0:00:05]} 4. e4 {[%emt 0:00:08]} d6 {[%emt 0:00:05]} 5. Be2 {[%emt 0:00:05]} O-O {[%emt 0:00:16]} 6. Nf3 {[%emt 0:00:09]} e5 {[%emt 0:00:12]} 7. d5 {[%emt 0:00:06]} a5 {[%emt 0:00:10]} 8. h3 {[%emt 0:00:24]} Nh5 {[%emt 0:06:36]} 9. g3 {[%emt 0:03:23] E92: King's Indian: Classical: 6 Be2 e5: 7 dxe5, 7 Be3 and Petrosian System without 7...Nbd7.} f5 {[%emt 0:06:08]} 10. Bg5 {[%emt 0:09:38]} (10. exf5 $1 $14 gxf5 11. Nh4) 10... Qe8 {[%emt 0:00:28]} (10... Bf6 $11 11. Bc1 fxe4 12. Nxe4 Bg7) 11. Qd2 {[%emt 0:09:25]} (11. exf5 $1 $14 gxf5 12. c5) 11... Na6 {[%emt 0:07:35][%cal Bb8a6,Ba6b4,Bb4a2][%mdl 32] [#]} 12. Bh6 $146 {[%emt 0:05:38]} (12. exf5 $11 gxf5 13. O-O-O) ({Predecessor:} 12. exf5 gxf5 13. O-O-O Nf6 14. g4 Ne4 15. Nxe4 fxe4 16. Nh4 Qa4 17. a3 Nc5 18. Kb1 {½-½ (27) Nowak,A (2248)-Tsygankov,E (2463) LSS email 2018}) 12... Nf6 $15 {[%emt 0:27:19]} 13. Bxg7 {[%emt 0:05:19]} Kxg7 {[%emt 0:00:08]} 14. exf5 {[%emt 0:08:44]} Bxf5 {[%emt 0:11:36]} 15. Qe3 {[%emt 0:09:27] Inhibits Ne4.} ({White should try} 15. Nh4 $15) 15... Nb4 $17 {[%emt 0:01:27]} 16. O-O-O {[%emt 0:01:35] [#]} (16. Rc1 $17) 16... Nxa2+ $1 $19 {[%emt 0:01:09][%mdl 512]} 17. Nxa2 {[%emt 0:01:13] Black must now prevent Nc3.} Qa4 {[%emt 0:00:05][%csl Gf5][%cal Ra4c2]} 18. Bd3 {[%emt 0:05:10] Against Qc2+. And now Nc3 would win.} Qxa2 {[%emt 0:06:24]} 19. Bxf5 {[%emt 0:00:11]} gxf5 {[%emt 0:00:05]} 20. Ng5 {[%emt 0:04:50]} Kh8 {[%emt 0:03:57]} 21. Qe2 $2 {[%emt 0:03:13]} (21. Kc2 {was worth a try.}) 21... a4 {[%emt 0:01:30][%cal Ba5a4,Ba4a3][%mdl 32]} 22. Qc2 {[%emt 0:03:06]} Ne4 {[%emt 0:10:23]} ({But not} 22... a3 $2 23. b3 Qxc2+ 24. Kxc2 $19) 23. Nxe4 {[%emt 0:02:14]} fxe4 {[%emt 0:00:04]} 24. Rhf1 {[%emt 0:00:19]} Rf3 {[%emt 0:04:17] ...Raf8 is the strong threat.} 25. Qxe4 {[%emt 0:01:50] [#]} a3 $1 {[%emt 0:00:50][%csl Ga3][%cal Ra2b2][%mdl 512] Black mates.} 26. Qc2 {[%emt 0:03:49]} (26. Kd2 axb2) 26... axb2+ {[%emt 0:03:37]} 27. Kd2 {[%emt 0:00:07]} Ra4 {[%emt 0:01:52][%cal Ba8a4,Ba4c4,Bc4d4][%mdl 32]} 28. Rb1 {[%emt 0:00:47]} Rxc4 {[%emt 0:03:34]} 29. Qxb2 {[%emt 0:00:06]} Rd4+ {[%emt 0:00:19]} 30. Ke2 {[%emt 0:00:52]} Qc4+ {[%emt 0:00:44]} 31. Kxf3 {[%emt 0:01:19]} Qxd5+ {[%emt 0:00:01]} 32. Ke2 {[%emt 0:00:08]} Qe4# {[%emt 0:00:04] Black took control after the opening.  Weighted Error Value: White=0.56/Black=0.07 (flawless)} 0-1

[Event "Mitropa Cup Women 2022"]
[Site "Corte"]
[Date "2022.05.03"]
[Round "4.1"]
[White "Cvitan, Ena"]
[Black "Gaal, Zsoka"]
[Result "1/2-1/2"]
[ECO "B02"]
[WhiteElo "2238"]
[BlackElo "2323"]
[Annotator "TA"]
[PlyCount "49"]
[EventDate "2022.04.30"]
[EventType "team-tourn"]
[EventCountry "FRA"]
[SourceTitle "playchess.com"]
[Source "ChessBase"]
[SourceQuality "1"]
[BlackTeam "Hungary"]
[BlackTeamCountry "HUN"]
[TimeControl "40/5400+30:1800+30"]

{[%evp 9,49,38,58,18,71,58,69,58,74,53,52,40,50,29,36,0,3,0,18,-56,-38,-47,-50,-53,-53,-43,-44,-62,-52,-47,-16,-20,-12,-16,-17,-15,-20,-35,-29,-16,83,41]} 1. e4 {[%emt 0:03:20][%cal Be2e4,Be4e5][%mdl 32]} Nf6 {[%emt 0:00:40]} 2. e5 {[%emt 0:00:24]} Nd5 {[%emt 0:00:02]} 3. Nc3 {[%emt 0:00:13]} Nb6 {[%emt 0:16:03]} 4. a4 {[%emt 0:03:17]} a5 {[%emt 0:03:26]} 5. d4 {[%emt 0:01:13]} d6 {[%emt 0:00:16]} 6. exd6 {[%emt 0:06:20] B02: Alekhine's Defence: Chase Variation and lines with early Nc3.} cxd6 {[%emt 0:01:48]} (6... exd6 $11 {keeps the balance.} 7. Nf3 Be7) 7. Nf3 {[%emt 0:00:18]} g6 {[%emt 0:00:38]} 8. Bb5+ {[%emt 0:20:20] White is slightly better.} Bd7 {[%emt 0:01:09]} 9. Bg5 {[%emt 0:01:44] White is more active.} Bg7 {[%emt 0:11:46]} 10. O-O {[%emt 0:03:31] [#]} h6 $146 {[%emt 0:02:06]} ({Predecessor:} 10... O-O 11. Re1 Re8 12. Qd2 Bxb5 13. axb5 d5 14. Na4 Nxa4 15. Rxa4 Nd7 16. Rea1 Qb6 17. Rxa5 Rxa5 18. Rxa5 {1-0 (41) Sokolov,A (2563)-Krizsany,L (2437) Lenk 2003}) 11. Bf4 {[%emt 0:11:15]} O-O {[%emt 0:01:10]} 12. Re1 {[%emt 0:00:03]} Nc6 {[%emt 0:04:48]} 13. h3 {[%emt 0:07:07]} Rc8 {[%emt 0:07:14]} 14. Na2 {[%emt 0:12:08]} ({White should play} 14. Ne2 $11) 14... Nb4 {[%emt 0:14:40]} (14... e5 {looks sharper.} 15. dxe5 dxe5 16. Nxe5 Nxe5 17. Bxe5 Bxb5 18. Bxg7 Kxg7 19. axb5 Qxd1 20. Rexd1 Rxc2 21. Nc3 Nc4) 15. Nxb4 {[%emt 0:07:11] [#] Threatens to win with Bxd7.} Bxb5 {[%emt 0:03:43]} 16. axb5 {[%emt 0:04:59]} axb4 {[%emt 0:00:11]} 17. Bd2 {[%emt 0:03:52]} Nd5 {[%emt 0:03:17]} 18. Rc1 {[%emt 0:01:35]} Qd7 {[%emt 0:07:34]} 19. Qe2 {[%emt 0:00:31]} Rc7 {[%emt 0:04:48]} (19... Qc7 $5 {[%cal Rc7c4]}) 20. c4 {[%emt 0:00:48]} bxc3 $1 {[%emt 0:01:41]} 21. bxc3 {[%emt 0:00:11] [#] Black must now prevent c4.} Rfc8 {[%emt 0:02:01]} 22. c4 {[%emt 0:02:07]} Nb6 {[%emt 0:00:45]} 23. c5 $1 {[%emt 0:00:12]} dxc5 {[%emt 0:00:57]} 24. Bf4 {[%emt 0:00:51]} e5 {[%emt 0:04:25]} (24... c4 $1 $11) 25. Bxe5 {[%emt 0:00:22] Weighted Error Value: White=0.19 (very precise) /Black=0.20 (precise)} 1/2-1/2